[Event "MČR v bleskovém šachu družstev 2019"]
[Site "Teplice, Czech Republic"]
[Date "2019.09.14"]
[Round "12.16"]
[White "Duran, Tomas"]
[Black "Kuba, Jindrich"]
[Result "1/2-1/2"]
[TimeControl "3 mim. + 2 s"]
[BlackTitle "FM"]
[BlackFideId "318248"]
[WhiteElo "2135"]
[BlackElo "2223"]

1. e4 {[%clk 00:03:02]} {[%emt 00:00:01]} c5 {[%clk 00:03:04]} 2. Nf3 {[%clk
00:03:03]} {[%emt 00:00:02]} e6 {[%clk 00:03:05]} 3. c3 {[%clk 00:03:02]}
{[%emt 00:00:03]} d5 {[%clk 00:03:05]} {[%emt 00:00:02]} 4. e5 {[%clk
00:02:58]} {[%emt 00:00:06]} Nc6 {[%clk 00:03:03]} {[%emt 00:00:04]} 5. d4
{[%clk 00:02:59]} {[%emt 00:00:01]} cxd4 {[%clk 00:02:58]} {[%emt 00:00:07]} 6.
cxd4 {[%clk 00:03:00]} Nge7 {[%clk 00:02:44]} {[%emt 00:00:16]} 7. Bd3 {[%clk
00:02:48]} {[%emt 00:00:14]} Qb6 {[%clk 00:02:30]} {[%emt 00:00:16]} 8. O-O
{[%clk 00:02:47]} {[%emt 00:00:03]} Nf5 {[%clk 00:02:24]} {[%emt 00:00:08]} 9.
Bxf5 {[%clk 00:02:30]} {[%emt 00:00:18]} exf5 {[%clk 00:02:25]} {[%emt
00:00:01]} 10. Nc3 {[%clk 00:02:31]} Be6 {[%clk 00:02:26]} {[%emt 00:00:02]} 11.
a3 {[%clk 00:02:18]} {[%emt 00:00:15]} Be7 {[%clk 00:02:26]} {[%emt 00:00:02]}
12. b4 {[%clk 00:02:18]} {[%emt 00:00:02]} a6 {[%clk 00:02:23]} {[%emt
00:00:05]} 13. Qd3 {[%clk 00:02:13]} {[%emt 00:00:06]} O-O {[%clk 00:02:19]}
{[%emt 00:00:06]} 14. Be3 {[%clk 00:02:06]} {[%emt 00:00:09]} Rac8 {[%clk
00:02:15]} {[%emt 00:00:06]} 15. Rfc1 {[%clk 00:02:03]} {[%emt 00:00:04]} h6
{[%clk 00:02:14]} {[%emt 00:00:04]} 16. Na4 {[%clk 00:01:48]} {[%emt 00:00:17]}
Qa7 {[%clk 00:01:46]} {[%emt 00:00:30]} 17. Rc2 {[%clk 00:01:44]} {[%emt
00:00:06]} Nb8 {[%clk 00:01:20]} {[%emt 00:00:28]} 18. Rac1 {[%clk 00:01:43]}
{[%emt 00:00:03]} Rxc2 {[%clk 00:01:20]} {[%emt 00:00:02]} 19. Rxc2 {[%clk
00:01:45]} b6 {[%clk 00:01:18]} {[%emt 00:00:05]} 20. h4 {[%clk 00:01:31]}
{[%emt 00:00:16]} Rc8 {[%clk 00:01:12]} {[%emt 00:00:08]} 21. h5 {[%clk
00:01:25]} {[%emt 00:00:08]} Rxc2 {[%clk 00:01:08]} {[%emt 00:00:06]} 22. Qxc2
{[%clk 00:01:26]} {[%emt 00:00:01]} Qb7 {[%clk 00:01:09]} 23. Nd2 {[%clk
00:01:14]} {[%emt 00:00:14]} Bd8 {[%clk 00:00:58]} {[%emt 00:00:12]} 24. Nb3
{[%clk 00:01:12]} {[%emt 00:00:04]} Bd7 {[%clk 00:00:55]} {[%emt 00:00:05]} 25.
Nb2 {[%clk 00:01:11]} {[%emt 00:00:02]} Qc6 {[%clk 00:00:51]} {[%emt 00:00:07]}
26. Qxc6 {[%clk 00:01:02]} {[%emt 00:00:10]} Nxc6 {[%clk 00:00:47]} {[%emt
00:00:06]} 27. Kf1 {[%clk 00:00:58]} {[%emt 00:00:07]} Kh7 {[%clk 00:00:48]} 28.
Ke2 {[%clk 00:00:59]} {[%emt 00:00:02]} g6 {[%clk 00:00:49]} 29. hxg6+ {[%clk
00:00:53]} {[%emt 00:00:09]} fxg6 {[%clk 00:00:50]} 30. Nd1 {[%clk 00:00:53]}
{[%emt 00:00:02]} g5 {[%clk 00:00:50]} {[%emt 00:00:02]} 31. Nc3 {[%clk
00:00:53]} Be6 {[%clk 00:00:47]} {[%emt 00:00:05]} 32. g3 {[%clk 00:00:47]}
{[%emt 00:00:09]} Be7 {[%clk 00:00:45]} {[%emt 00:00:04]} 33. Kd3 {[%clk
00:00:47]} {[%emt 00:00:02]} Kg6 {[%clk 00:00:44]} {[%emt 00:00:03]} 34. Na4
{[%clk 00:00:45]} {[%emt 00:00:04]} Bd8 {[%clk 00:00:43]} {[%emt 00:00:03]} 35.
Nc3 {[%clk 00:00:41]} {[%emt 00:00:06]} Ne7 {[%clk 00:00:44]} {[%emt 00:00:01]}
36. b5 {[%clk 00:00:40]} {[%emt 00:00:03]} a5 {[%clk 00:00:36]} {[%emt
00:00:10]} 37. Na4 {[%clk 00:00:39]} {[%emt 00:00:03]} Bd7 {[%clk 00:00:36]}
{[%emt 00:00:02]} 38. Nc3 {[%clk 00:00:40]} {[%emt 00:00:02]} Kf7 {[%clk
00:00:35]} {[%emt 00:00:03]} 39. Nd2 {[%clk 00:00:38]} {[%emt 00:00:04]} Ke6
{[%clk 00:00:35]} {[%emt 00:00:02]} 40. a4 {[%clk 00:00:38]} {[%emt 00:00:01]}
Be8 {[%clk 00:00:35]} {[%emt 00:00:03]} 41. Nb3 {[%clk 00:00:37]} {[%emt
00:00:03]} Bg6 {[%clk 00:00:36]} {[%emt 00:00:02]} 42. Kd2 {[%clk 00:00:37]}
{[%emt 00:00:02]} Bh7 {[%clk 00:00:34]} {[%emt 00:00:04]} 43. Ke2 {[%emt
00:00:02]} Ng6 {[%clk 00:00:34]} {[%emt 00:00:02]} 44. Nc1 {[%clk 00:00:33]}
{[%emt 00:00:06]} f4 {[%clk 00:00:24]} {[%emt 00:00:12]} 45. gxf4 {[%clk
00:00:34]} {[%emt 00:00:01]} gxf4 {[%clk 00:00:25]} 46. Bd2 {[%clk 00:00:35]}
Kf5 {[%clk 00:00:24]} {[%emt 00:00:04]} 47. Nd3 {[%clk 00:00:33]} {[%emt
00:00:04]} Bg5 {[%clk 00:00:24]} {[%emt 00:00:01]} 48. Nxd5 {[%clk 00:00:34]}
{[%emt 00:00:02]} Ke6 {[%clk 00:00:19]} {[%emt 00:00:07]} 49. Nxb6 {[%clk
00:00:34]} {[%emt 00:00:02]} Ne7 {[%clk 00:00:21]} 50. Nc5+ {[%clk 00:00:32]}
{[%emt 00:00:04]} Kf7 {[%clk 00:00:21]} {[%emt 00:00:01]} 51. d5 {[%clk
00:00:30]} {[%emt 00:00:04]} f3+ {[%emt 00:00:02]} 52. Kxf3 {[%clk 00:00:30]}
Bxd2 {[%clk 00:00:24]} 53. d6 {[%clk 00:00:27]} {[%emt 00:00:05]} Bf5 {[%clk
00:00:17]} {[%emt 00:00:09]} 54. Nc4 {[%clk 00:00:26]} {[%emt 00:00:03]} Bb4
{[%clk 00:00:16]} {[%emt 00:00:02]} 55. Nb7 {[%clk 00:00:22]} {[%emt 00:00:05]}
Ng6 {[%clk 00:00:13]} {[%emt 00:00:05]} 56. Nb6 {[%clk 00:00:19]} {[%emt
00:00:05]} Nxe5+ {[%clk 00:00:14]} {[%emt 00:00:02]} 57. Kf4 {[%clk 00:00:20]}
{[%emt 00:00:01]} Nd7 {[%clk 00:00:14]} {[%emt 00:00:01]} 58. Nd5 {[%clk
00:00:17]} {[%emt 00:00:06]} Be6 {[%clk 00:00:13]} {[%emt 00:00:03]} 59. Nc7
{[%clk 00:00:15]} {[%emt 00:00:04]} Bh3 {[%clk 00:00:13]} {[%emt 00:00:02]} 60.
Nd5 {[%clk 00:00:13]} {[%emt 00:00:04]} Ke6 {[%clk 00:00:09]} {[%emt 00:00:05]}
61. Nc7+ {[%clk 00:00:13]} {[%emt 00:00:02]} Kf7 {[%clk 00:00:10]} 62. Nd5
{[%clk 00:00:14]} Ke6 {[%clk 00:00:12]} {[%emt 00:00:01]} 1/2-1/2

[Event "MČR v bleskovém šachu družstev 2019"]
[Site "Teplice, Czech Republic"]
[Date "2019.09.14"]
[Round "12.17"]
[White "Krejci, Jan"]
[Black "Rubes, Jan"]
[Result "0-1"]
[TimeControl "3 mim. + 2 s"]
[WhiteTitle "GM"]
[BlackTitle "FM"]
[WhiteFideId "322156"]
[BlackFideId "338176"]
[WhiteElo "2527"]
[BlackElo "2316"]

1. d4 {[%clk 00:03:03]} {[%emt 00:00:01]} d5 {[%clk 00:03:03]} 2. c4 {[%clk
00:03:04]} {[%emt 00:00:01]} c6 {[%clk 00:03:02]} {[%emt 00:00:02]} 3. Nc3
{[%clk 00:03:05]} {[%emt 00:00:02]} Nf6 {[%emt 00:00:01]} 4. e3 e6 {[%clk
00:03:03]} {[%emt 00:00:02]} 5. Nf3 {[%clk 00:03:07]} {[%emt 00:00:01]} Nbd7
{[%clk 00:03:04]} {[%emt 00:00:02]} 6. Qc2 {[%clk 00:03:09]} Bd6 {[%clk
00:03:03]} {[%emt 00:00:02]} 7. Bd3 {[%clk 00:03:10]} {[%emt 00:00:01]} dxc4
{[%clk 00:02:58]} {[%emt 00:00:07]} 8. Bxc4 {[%clk 00:03:11]} {[%emt 00:00:01]}
O-O {[%clk 00:02:51]} {[%emt 00:00:08]} 9. O-O {[%clk 00:03:12]} {[%emt
00:00:02]} e5 {[%clk 00:02:49]} {[%emt 00:00:04]} 10. h3 {[%clk 00:03:01]}
{[%emt 00:00:13]} exd4 {[%clk 00:02:30]} {[%emt 00:00:20]} 11. Nxd4 {[%clk
00:03:02]} {[%emt 00:00:01]} Ne5 {[%clk 00:02:25]} {[%emt 00:00:08]} 12. Be2
{[%clk 00:03:03]} {[%emt 00:00:02]} c5 {[%clk 00:02:22]} {[%emt 00:00:04]} 13.
Nf5 {[%clk 00:02:57]} {[%emt 00:00:07]} Bxf5 {[%clk 00:02:16]} {[%emt
00:00:09]} 14. Qxf5 {[%clk 00:02:58]} {[%emt 00:00:02]} Qe7 {[%clk 00:02:13]}
{[%emt 00:00:04]} 15. b3 {[%clk 00:02:50]} {[%emt 00:00:09]} Rad8 {[%clk
00:02:12]} {[%emt 00:00:03]} 16. Bb2 {[%clk 00:02:51]} Bb8 {[%clk 00:02:07]}
{[%emt 00:00:08]} 17. Rfd1 {[%clk 00:02:50]} {[%emt 00:00:03]} b6 {[%clk
00:02:02]} {[%emt 00:00:08]} 18. Qc2 {[%clk 00:02:27]} {[%emt 00:00:25]} Ng6
{[%clk 00:01:56]} {[%emt 00:00:08]} 19. g3 {[%clk 00:02:23]} {[%emt 00:00:06]}
Qe6 {[%clk 00:01:52]} {[%emt 00:00:06]} 20. Bf1 {[%clk 00:02:20]} {[%emt
00:00:04]} h5 {[%clk 00:01:50]} {[%emt 00:00:04]} 21. h4 {[%clk 00:02:14]}
{[%emt 00:00:08]} Ne5 {[%clk 00:01:38]} {[%emt 00:00:15]} 22. Bg2 {[%clk
00:02:14]} {[%emt 00:00:02]} Neg4 {[%clk 00:01:35]} {[%emt 00:00:05]} 23. Ne4
{[%clk 00:02:11]} {[%emt 00:00:04]} Nxe4 {[%clk 00:01:27]} {[%emt 00:00:11]} 24.
Qxe4 {[%clk 00:02:12]} Qxe4 {[%clk 00:01:24]} {[%emt 00:00:05]} 25. Bxe4 {[%clk
00:02:13]} {[%emt 00:00:01]} Be5 {[%clk 00:01:25]} 26. Bxe5 {[%clk 00:02:07]}
{[%emt 00:00:07]} Nxe5 {[%clk 00:01:26]} 27. Bd5 {[%clk 00:02:02]} {[%emt
00:00:07]} g6 {[%clk 00:01:18]} {[%emt 00:00:10]} 28. e4 {[%clk 00:01:58]}
{[%emt 00:00:06]} Nf3+ {[%clk 00:01:14]} {[%emt 00:00:06]} 29. Kg2 {[%clk
00:01:57]} {[%emt 00:00:04]} Nd4 {[%clk 00:01:15]} 30. Rac1 {[%clk 00:01:54]}
{[%emt 00:00:05]} a5 {[%clk 00:01:05]} {[%emt 00:00:12]} 31. a3 {[%clk
00:01:55]} {[%emt 00:00:01]} Nb5 {[%clk 00:01:04]} {[%emt 00:00:04]} 32. a4
{[%clk 00:01:50]} {[%emt 00:00:07]} Nd4 {[%clk 00:00:47]} {[%emt 00:00:18]} 33.
f4 {[%clk 00:01:49]} {[%emt 00:00:03]} Kg7 {[%clk 00:00:47]} {[%emt 00:00:02]}
34. Rd3 {[%clk 00:01:48]} {[%emt 00:00:03]} f5 {[%clk 00:00:46]} {[%emt
00:00:03]} 35. Re1 {[%clk 00:01:35]} {[%emt 00:00:15]} Rfe8 {[%clk 00:00:43]}
{[%emt 00:00:06]} 36. Kf2 {[%clk 00:01:19]} {[%emt 00:00:16]} Nc2 {[%clk
00:00:42]} {[%emt 00:00:04]} 37. Re2 {[%clk 00:01:16]} {[%emt 00:00:05]} Nb4
{[%clk 00:00:43]} {[%emt 00:00:01]} 38. Rdd2 {[%clk 00:01:14]} {[%emt
00:00:04]} fxe4 {[%clk 00:00:43]} {[%emt 00:00:02]} 39. Bc4 {[%clk 00:01:05]}
{[%emt 00:00:11]} e3+ {[%clk 00:00:44]} 0-1

[Event "MČR v bleskovém šachu družstev 2019"]
[Site "Teplice, Czech Republic"]
[Date "2019.09.14"]
[Round "12.18"]
[White "Hadraba, Vladimir"]
[Black "Sorm, Daniel"]
[Result "1/2-1/2"]
[TimeControl "3 mim. + 2 s"]
[BlackTitle "FM"]
[WhiteFideId "301663"]
[BlackFideId "5400139"]
[WhiteElo "2095"]
[BlackElo "2310"]

1. e4 {[%clk 00:03:03]} {[%emt 00:00:01]} c5 {[%clk 00:03:03]} {[%emt
00:00:01]} 2. Nf3 {[%clk 00:03:03]} {[%emt 00:00:02]} Nc6 {[%clk 00:03:04]} 3.
d4 {[%clk 00:03:04]} {[%emt 00:00:02]} cxd4 {[%clk 00:03:05]} {[%emt 00:00:01]}
4. Nxd4 {[%clk 00:03:05]} {[%emt 00:00:01]} Nf6 {[%clk 00:02:56]} {[%emt
00:00:11]} 5. Nc3 {[%emt 00:00:02]} d6 6. Be2 {[%clk 00:02:55]} {[%emt
00:00:12]} e5 {[%clk 00:02:51]} {[%emt 00:00:09]} 7. Nb3 {[%clk 00:02:53]}
{[%emt 00:00:03]} Be7 {[%clk 00:02:50]} {[%emt 00:00:04]} 8. O-O {[%clk
00:02:51]} {[%emt 00:00:04]} O-O {[%clk 00:02:51]} 9. Be3 {[%clk 00:02:48]}
{[%emt 00:00:05]} a5 {[%clk 00:02:51]} {[%emt 00:00:02]} 10. a4 {[%clk
00:02:42]} {[%emt 00:00:08]} Nb4 {[%clk 00:02:50]} {[%emt 00:00:02]} 11. f3
{[%clk 00:02:33]} {[%emt 00:00:11]} Be6 {[%clk 00:02:49]} {[%emt 00:00:04]} 12.
Qd2 {[%clk 00:02:22]} {[%emt 00:00:13]} d5 {[%clk 00:02:37]} {[%emt 00:00:14]}
13. exd5 {[%clk 00:02:11]} {[%emt 00:00:13]} Nbxd5 {[%clk 00:02:29]} {[%emt
00:00:10]} 14. Nxd5 {[%clk 00:02:06]} {[%emt 00:00:07]} Nxd5 {[%clk 00:02:29]}
{[%emt 00:00:02]} 15. Bf2 {[%clk 00:01:58]} {[%emt 00:00:10]} Bg5 {[%clk
00:02:06]} {[%emt 00:00:25]} 16. Qe1 {[%clk 00:01:08]} {[%emt 00:00:52]} Ne3
{[%clk 00:02:00]} {[%emt 00:00:08]} 17. Bxe3 {[%clk 00:01:08]} {[%emt
00:00:02]} Bxe3+ {[%clk 00:02:01]} {[%emt 00:00:01]} 18. Kh1 {[%clk 00:01:10]}
Bb6 {[%clk 00:01:35]} {[%emt 00:00:29]} 19. Bd3 {[%clk 00:01:02]} {[%emt
00:00:09]} Qc7 {[%clk 00:01:32]} {[%emt 00:00:04]} 20. Qe2 {[%clk 00:00:50]}
{[%emt 00:00:15]} Rad8 {[%clk 00:01:25]} {[%emt 00:00:11]} 21. Nd2 {[%clk
00:00:47]} {[%emt 00:00:07]} f6 {[%clk 00:01:18]} {[%emt 00:00:10]} 22. Bc4
{[%clk 00:00:41]} {[%emt 00:00:08]} Bf7 {[%clk 00:01:05]} {[%emt 00:00:15]} 23.
Bxf7+ {[%clk 00:00:39]} {[%emt 00:00:04]} Rxf7 {[%clk 00:01:06]} {[%emt
00:00:01]} 24. Ne4 {[%clk 00:00:35]} {[%emt 00:00:05]} Rfd7 {[%clk 00:00:59]}
{[%emt 00:00:08]} 25. c3 {[%clk 00:00:34]} {[%emt 00:00:03]} f5 {[%clk
00:00:53]} {[%emt 00:00:09]} 26. Ng5 {[%clk 00:00:31]} {[%emt 00:00:05]} Rd2
{[%clk 00:00:42]} {[%emt 00:00:13]} 27. Qb5 {[%clk 00:00:32]} {[%emt 00:00:01]}
Qd6 {[%clk 00:00:17]} {[%emt 00:00:28]} 28. Qb3+ {[%clk 00:00:29]} {[%emt
00:00:04]} Rd5 {[%clk 00:00:18]} {[%emt 00:00:01]} 29. Rad1 {[%clk 00:00:27]}
{[%emt 00:00:04]} h6 {[%clk 00:00:17]} {[%emt 00:00:03]} 30. Nh3 {[%clk
00:00:25]} {[%emt 00:00:04]} Kh7 {[%clk 00:00:17]} {[%emt 00:00:02]} 31. Rxd5
{[%clk 00:00:25]} {[%emt 00:00:02]} Qxd5 {[%clk 00:00:19]} 32. Qxb6 {[%clk
00:00:26]} {[%emt 00:00:02]} e4 {[%clk 00:00:17]} {[%emt 00:00:03]} 33. fxe4
{[%clk 00:00:25]} {[%emt 00:00:02]} fxe4 {[%clk 00:00:18]} {[%emt 00:00:02]} 34.
Qf2 {[%clk 00:00:24]} {[%emt 00:00:02]} Qd3 {[%clk 00:00:16]} {[%emt 00:00:05]}
35. Qf5+ {[%clk 00:00:24]} {[%emt 00:00:02]} Kh8 {[%clk 00:00:17]} {[%emt
00:00:01]} 36. Rg1 {[%clk 00:00:23]} {[%emt 00:00:03]} Kg8 {[%clk 00:00:16]}
{[%emt 00:00:04]} 37. Nf4 {[%clk 00:00:23]} {[%emt 00:00:01]} Qd2 {[%clk
00:00:12]} {[%emt 00:00:06]} 38. Qxe4 {[%clk 00:00:21]} {[%emt 00:00:04]} Qxb2
{[%clk 00:00:13]} {[%emt 00:00:02]} 39. Qe6+ {[%clk 00:00:21]} {[%emt
00:00:01]} Kh7 {[%clk 00:00:13]} {[%emt 00:00:02]} 40. Qe4+ {[%clk 00:00:21]}
{[%emt 00:00:02]} Kg8 {[%clk 00:00:14]} {[%emt 00:00:01]} 41. Nd5 {[%clk
00:00:21]} {[%emt 00:00:02]} Qd2 {[%clk 00:00:12]} {[%emt 00:00:04]} 42. Ne7+
{[%clk 00:00:20]} {[%emt 00:00:03]} Kh8 {[%clk 00:00:12]} {[%emt 00:00:01]} 43.
Nf5 {[%clk 00:00:21]} {[%emt 00:00:02]} Qd7 {[%clk 00:00:11]} {[%emt 00:00:03]}
44. Qe5 {[%clk 00:00:22]} {[%emt 00:00:02]} Re8 {[%clk 00:00:11]} {[%emt
00:00:01]} 45. Qd4 {[%clk 00:00:21]} {[%emt 00:00:02]} Qxf5 {[%clk 00:00:12]}
{[%emt 00:00:03]} 46. h3 {[%clk 00:00:22]} {[%emt 00:00:01]} Qe5 {[%clk
00:00:11]} {[%emt 00:00:02]} 47. Qxe5 {[%clk 00:00:21]} {[%emt 00:00:03]} Rxe5
{[%clk 00:00:12]} {[%emt 00:00:01]} 48. Rb1 {[%clk 00:00:22]} Rc5 {[%clk
00:00:11]} {[%emt 00:00:03]} 49. Rxb7 {[%clk 00:00:22]} {[%emt 00:00:02]} Rxc3
{[%clk 00:00:12]} 50. Rb5 {[%clk 00:00:22]} {[%emt 00:00:01]} Ra3 {[%clk
00:00:11]} {[%emt 00:00:04]} 51. Rxa5 {[%clk 00:00:23]} Ra2 {[%clk 00:00:12]}
52. Kh2 {[%clk 00:00:24]} Kh7 {[%clk 00:00:13]} {[%emt 00:00:01]} 53. Ra7
{[%clk 00:00:24]} {[%emt 00:00:01]} Kg6 {[%clk 00:00:14]} {[%emt 00:00:02]} 54.
a5 {[%clk 00:00:25]} h5 {[%clk 00:00:15]} {[%emt 00:00:01]} 55. Kg3 {[%clk
00:00:26]} Ra3+ {[%clk 00:00:16]} 56. Kf2 {[%clk 00:00:26]} {[%emt 00:00:01]}
Ra2+ {[%clk 00:00:18]} 57. Kf3 {[%clk 00:00:27]} {[%emt 00:00:01]} Ra3+ {[%clk
00:00:18]} {[%emt 00:00:02]} 58. Ke4 {[%clk 00:00:21]} {[%emt 00:00:07]} h4
{[%clk 00:00:18]} {[%emt 00:00:03]} 59. a6 {[%clk 00:00:19]} {[%emt 00:00:04]}
Ra2 {[%clk 00:00:15]} {[%emt 00:00:05]} 60. Kf3 {[%clk 00:00:17]} {[%emt
00:00:04]} Ra3+ {[%clk 00:00:16]} 61. Kf2 {[%clk 00:00:19]} Ra2+ {[%clk
00:00:17]} {[%emt 00:00:01]} 62. Kg1 {[%clk 00:00:20]} Ra1+ {[%clk 00:00:18]}
{[%emt 00:00:02]} 63. Kh2 {[%clk 00:00:21]} Ra3 {[%clk 00:00:18]} {[%emt
00:00:03]} 64. Ra8 {[%clk 00:00:18]} {[%emt 00:00:05]} 1/2-1/2

[Event "MČR v bleskovém šachu družstev 2019"]
[Site "Teplice, Czech Republic"]
[Date "2019.09.14"]
[Round "12.19"]
[White "Strasil, Pavel"]
[Black "Kral, David"]
[Result "0-1"]
[TimeControl "3 mim. + 2 s"]
[WhiteFideId "308013"]
[BlackFideId "326097"]
[WhiteElo "2026"]
[BlackElo "2028"]

1. d4 {[%clk 00:03:01]} {[%emt 00:00:03]} d5 {[%clk 00:03:04]} 2. c4 {[%clk
00:03:02]} {[%emt 00:00:01]} c6 {[%clk 00:03:05]} 3. e3 {[%clk 00:03:03]}
{[%emt 00:00:02]} e6 {[%clk 00:03:07]} {[%emt 00:00:01]} 4. Nc3 {[%clk
00:03:03]} {[%emt 00:00:02]} f5 {[%clk 00:03:08]} 5. Nf3 {[%clk 00:02:58]}
{[%emt 00:00:06]} Nf6 {[%clk 00:03:09]} {[%emt 00:00:02]} 6. Ne5 {[%clk
00:02:58]} {[%emt 00:00:02]} Bd6 {[%clk 00:03:10]} 7. f4 {[%clk 00:02:59]}
{[%emt 00:00:01]} O-O {[%clk 00:03:11]} {[%emt 00:00:01]} 8. cxd5 {[%clk
00:02:59]} {[%emt 00:00:02]} exd5 {[%clk 00:03:11]} {[%emt 00:00:01]} 9. Bd3
{[%clk 00:02:58]} {[%emt 00:00:03]} Ne4 {[%clk 00:03:11]} {[%emt 00:00:02]} 10.
g3 {[%clk 00:02:53]} {[%emt 00:00:08]} Nd7 {[%clk 00:03:08]} {[%emt 00:00:04]}
11. Nxd7 {[%clk 00:02:47]} {[%emt 00:00:08]} Bxd7 {[%clk 00:03:09]} {[%emt
00:00:02]} 12. Bxe4 {[%clk 00:02:39]} {[%emt 00:00:10]} fxe4 {[%clk 00:03:07]}
{[%emt 00:00:04]} 13. Bd2 {[%clk 00:02:38]} {[%emt 00:00:03]} Bh3 {[%clk
00:03:00]} {[%emt 00:00:08]} 14. Qe2 {[%clk 00:02:29]} {[%emt 00:00:11]} Qd7
{[%clk 00:02:58]} {[%emt 00:00:04]} 15. Rc1 {[%clk 00:02:27]} {[%emt 00:00:05]}
Bg4 {[%clk 00:02:56]} {[%emt 00:00:04]} 16. Qf2 {[%clk 00:02:25]} {[%emt
00:00:04]} Bf3 {[%clk 00:02:57]} {[%emt 00:00:01]} 17. Rg1 {[%clk 00:02:25]}
{[%emt 00:00:02]} Qg4 {[%clk 00:02:54]} {[%emt 00:00:04]} 18. Na4 {[%clk
00:02:11]} {[%emt 00:00:16]} Rf7 {[%clk 00:02:44]} {[%emt 00:00:12]} 19. a3
{[%clk 00:02:08]} {[%emt 00:00:06]} g5 {[%clk 00:02:35]} {[%emt 00:00:11]} 20.
Bb4 {[%clk 00:02:07]} {[%emt 00:00:03]} Bc7 {[%clk 00:02:21]} {[%emt 00:00:15]}
21. Kd2 {[%clk 00:02:07]} {[%emt 00:00:03]} Re8 {[%clk 00:02:11]} {[%emt
00:00:12]} 22. b3 {[%clk 00:01:55]} {[%emt 00:00:14]} Kh8 {[%clk 00:02:03]}
{[%emt 00:00:10]} 23. Kc2 {[%clk 00:01:50]} {[%emt 00:00:06]} b6 {[%clk
00:01:52]} {[%emt 00:00:14]} 24. Kb1 {[%clk 00:01:46]} {[%emt 00:00:06]} Re6
{[%clk 00:01:53]} 25. Ka2 {[%clk 00:01:25]} {[%emt 00:00:23]} a5 {[%clk
00:01:51]} {[%emt 00:00:04]} 26. Bd2 {[%clk 00:01:22]} {[%emt 00:00:04]} Rf8
{[%clk 00:01:32]} {[%emt 00:00:21]} 27. Nc3 {[%clk 00:01:08]} {[%emt 00:00:16]}
Bd6 {[%clk 00:01:28]} {[%emt 00:00:06]} 28. Na4 {[%clk 00:01:08]} {[%emt
00:00:03]} Bc7 {[%clk 00:01:27]} {[%emt 00:00:03]} 29. Nc3 {[%clk 00:01:08]}
{[%emt 00:00:01]} Bd8 {[%clk 00:01:24]} {[%emt 00:00:06]} 30. Nb1 {[%clk
00:01:00]} {[%emt 00:00:11]} Be7 {[%clk 00:01:22]} {[%emt 00:00:03]} 31. Rc2
{[%clk 00:00:59]} {[%emt 00:00:02]} Rc8 {[%clk 00:01:16]} {[%emt 00:00:09]} 32.
Rgc1 {[%clk 00:01:00]} {[%emt 00:00:01]} Qh5 {[%clk 00:00:59]} {[%emt
00:00:19]} 33. Bc3 {[%clk 00:00:57]} {[%emt 00:00:05]} Bd8 {[%clk 00:00:51]}
{[%emt 00:00:10]} 34. Bb2 {[%clk 00:00:56]} {[%emt 00:00:03]} b5 {[%clk
00:00:49]} {[%emt 00:00:04]} 35. Nc3 {[%clk 00:00:52]} {[%emt 00:00:06]} Rb8
{[%clk 00:00:44]} {[%emt 00:00:06]} 36. Ne2 {[%clk 00:00:45]} {[%emt 00:00:09]}
Rb6 {[%clk 00:00:42]} {[%emt 00:00:05]} 37. Ng1 {[%clk 00:00:44]} {[%emt
00:00:02]} Bd1 {[%clk 00:00:41]} {[%emt 00:00:04]} 38. Rd2 {[%clk 00:00:40]}
{[%emt 00:00:06]} Bg4 {[%clk 00:00:37]} {[%emt 00:00:06]} 39. h3 {[%clk
00:00:37]} {[%emt 00:00:05]} Bxh3 {[%clk 00:00:34]} {[%emt 00:00:04]} 40. Nxh3
{[%clk 00:00:37]} {[%emt 00:00:02]} Qxh3 {[%clk 00:00:35]} {[%emt 00:00:01]} 41.
fxg5 {[%clk 00:00:38]} {[%emt 00:00:01]} Re8 {[%clk 00:00:28]} {[%emt
00:00:09]} 42. Rdd1 {[%clk 00:00:29]} {[%emt 00:00:11]} Bxg5 {[%clk 00:00:23]}
{[%emt 00:00:08]} 43. Qf7 {[%clk 00:00:28]} {[%emt 00:00:03]} Qe6 {[%clk
00:00:22]} {[%emt 00:00:02]} 44. Qh5 {[%clk 00:00:26]} {[%emt 00:00:05]} Qg6
{[%clk 00:00:23]} 45. Qe2 {[%clk 00:00:23]} {[%emt 00:00:05]} Rf8 {[%clk
00:00:23]} {[%emt 00:00:03]} 46. Rf1 {[%clk 00:00:22]} {[%emt 00:00:02]} Rbb8
{[%clk 00:00:24]} {[%emt 00:00:01]} 47. g4 {[%clk 00:00:18]} {[%emt 00:00:06]}
Kg7 {[%clk 00:00:25]} 48. Rce1 {[%clk 00:00:14]} {[%emt 00:00:05]} a4 {[%clk
00:00:26]} {[%emt 00:00:01]} 49. bxa4 {[%clk 00:00:11]} {[%emt 00:00:05]} bxa4
{[%clk 00:00:28]} {[%emt 00:00:01]} 50. Bc3 {[%clk 00:00:12]} Rb3 {[%clk
00:00:28]} 51. Rxf8 {[%clk 00:00:10]} {[%emt 00:00:04]} Kxf8 {[%clk 00:00:29]}
{[%emt 00:00:02]} 52. Bb4+ {[%clk 00:00:11]} Kg7 {[%clk 00:00:28]} {[%emt
00:00:03]} 53. Qf2 {[%clk 00:00:12]} {[%emt 00:00:02]} Qf6 {[%clk 00:00:28]}
{[%emt 00:00:02]} 54. Qh2 {[%clk 00:00:10]} {[%emt 00:00:04]} Kg6 {[%clk
00:00:23]} {[%emt 00:00:06]} 55. Rh1 {[%clk 00:00:09]} {[%emt 00:00:04]} h6
{[%clk 00:00:23]} {[%emt 00:00:02]} 56. Qh5+ {[%emt 00:00:07]} Kg7 57. Qe8
{[%clk 00:00:04]} {[%emt 00:00:02]} Qf2+ {[%clk 00:00:24]} {[%emt 00:00:02]}
0-1